Workbook

Sheet MSU
B1: Jari Penttinen | E1: 16.1.1972
B2: SUPERPESIS | E2: Runkosarja | I2: Kärkilyönnit (KL), pesänvälit | P2: Ylempi loppusarja | W2: Alempi loppusarja | AD2: Arvo-ottelut | AH2: Mitalit
B3: Vuosi | C3: Sija | D3: Seura | E3: OTT | F3: KUN | G3: LÖI | H3: TOI | I3: KL | J3: 0 > 1 | K3: 1 > 2 | L3: 2 > 3 | M3: 3 > k | N3: KL-% | P3: OTT | Q3: KUN | R3: LÖI | S3: TOI | T3: KL | U3: KL-% | W3: OTT | X3: KUN | Y3: LÖI | Z3: TOI | AA3: KL | AB3: KL-% | AD3: IL | AE3: LL | AF3: hSM | AG3: K | AH3: H | AI3: P
B4: 1987 | C4: 4. | D4: Tahko 2
B5: 1988 | C5: 5. | D5: Tahko 2
B6: 1989 | C6: 5. | D6: Tahko 2
B7: 1990 | C7: 8. | D7: HP | F7: ykköspesis
B8: 1991 | C8: 5. | D8: HP | F8: ykköspesis
B9: 1992 | C9: 2. | D9: Manse PP | F9: ykköspesis | W9: 2 | X9: 0 | Y9: 0 | Z9: 0 | AA9: 7 | AB9: 43.8 %
B10: 1993 | C10: 8. | D10: Manse PP | F10: ykköspesis
B11: 1994 | C11: 5. | D11: HP | F11: ykköspesis | W11: 17 | X11: 0 | Y11: 2 | Z11: 19 | AA11: 60 | AB11: 54.1 %
B12: 1995 | C12: 2. | D12: HP | F12: ykköspesis | W12: 5 | X12: 0 | Y12: 1 | Z12: 4 | AA12: 27 | AB12: 73.0 %
B13: 1996 | C13: 12. | D13: HP | E13: 29 | F13: 0 | G13: 2 | H13: 14 | I13: 71 | J13: 40 | K13: 19 | L13: 10 | M13: 2 | N13: 49.3 % | W13: x
B14: 1997
B15: 1998 | C15: 12. | D15: HP | E15: 1 | F15: 0 | G15: 0 | H15: 0 | I15: 1 | J15: 1 | K15: 0 | L15: 0 | M15: 0 | N15: 50.0 % | W15: 1 | X15: 0 | Y15: 0 | Z15: 0 | AA15: 2 | AB15: 50.0 %
B16: 1999 | C16: 12. | D16: HP | E16: 18 | F16: 0 | G16: 0 | H16: 2 | I16: 31 | J16: 18 | K16: 10 | L16: 3 | M16: 0 | N16: 54.4 % | W16: 6 | X16: 0 | Y16: 1 | Z16: 7 | AA16: 14 | AB16: 77.8 %
B17: 2000
B18: 2001 | C18: 14. | D18: HP | E18: 0 | F18: 0 | G18: 0 | H18: 0 | I18: 0 | J18: 0 | K18: 0 | L18: 0 | M18: 0 | N18: 0.0 % | W18: 1 | X18: 0 | Y18: 0 | Z18: 1 | AA18: 5 | AB18: 100.0 %
B19: 2002 | C19: 9. | D19: HP | F19: suomensarja
B20: Yhteensä | E20: 48 | F20: 0 | G20: 2 | H20: 16 | I20: 103 | J20: 59 | K20: 29 | L20: 13 | M20: 2 | N20: 50.7 % | P20: =SUM(P15:P19) -> 0 | Q20: =SUM(Q15:Q19) -> 0 | R20: =SUM(R15:R19) -> 0 | S20: =SUM(S15:S19) -> 0 | T20: =SUM(T15:T19) -> 0 | U20: 0.0 % | W20: =PRODUCT(E26) -> 32 | X20: =PRODUCT(F26) -> 0 | Y20: =PRODUCT(G26) -> 4 | Z20: =PRODUCT(H26) -> 31 | AA20: =PRODUCT(I26) -> 115 | AB20: =PRODUCT(N26) -> 60.2 % | AD20: 0 | AE20: 0 | AF20: 0 | AG20: 0 | AH20: 0 | AI20: 0
B21: Pesispörssi | D21: 67.7
B23: URA SUPERISSA | E23: OTT | F23: KUN | G23: LÖI | H23: TOI | I23: KL | K23: ka/L | L23: ka/T | M23: ka/KL | N23: KL-% | P23: ENSIMMÄISET RUNKOSARJASSA
B24: Runkosarja | E24: 48 | F24: 0 | G24: 2 | H24: 16 | I24: 103 | K24: 0.04 | L24: 0.33 | M24: 2.15 | N24: 50.7 % | P24: Ottelu | R24: 12.05. 1996 HP - AA 2-0 (4-2, 8-1) | Z24: 1. ottelu | AB24: 24 v 3 kk 26 pv
B25: Ylempi loppusarja | P25: Lyöty | R25: 13.06. 1996 IPV - HP 0-1 (2-4, 3-3) | Z25: 11. ottelu | AB25: 24 v 4 kk 28 pv
B26: Alempi loppusarja | E26: 32 | F26: 0 | G26: 4 | H26: 31 | I26: 115 | K26: 0.13 | L26: 0.97 | M26: 3.59 | N26: 60.2 % | P26: Tuotu | R26: 19.05. 1996 HP - Lippo 0-2 (2-3, 3-4) | Z26: 3. ottelu | AB26: 24 v 4 kk 3 pv
B27: KAIKKI | E27: 80 | F27: 0 | G27: 6 | H27: 47 | I27: 218 | K27: 0.08 | L27: 0.59 | M27: 2.73 | N27: 55.3 % | P27: Kunnari
B29: Seurat | D29: Tahko = Hyvinkään Tahko (1915)
D30: HP = Haminan Palloilijat (1928)
D31: Manse PP = Mansen Pesäpallo (1978)

Sheet MYP, MSS
B1: Jari Penttinen | E1: 16.1.1972
B2: YKKÖSPESIS | E2: Runkosarja | L2: Runkosarja TOP-10 | Q2: Jatkosarjat | X2: SUOMENSARJA | AA2: Runkosarja | AH2: Runkosarja TOP-10 | AM2: Jatkosarjat
B3: Vuosi | C3: Sija | D3: Seura | E3: OTT | F3: KUN | G3: LÖI | H3: TOI | I3: KL | J3: KL-% | L3: LÖI | M3: TOI | N3: L+T | O3: KL | Q3: OTT | R3: KUN | S3: LÖI | T3: TOI | U3: KL | V3: KL-% | X3: Vuosi | Y3: Sija | Z3: Seura | AA3: OTT | AB3: KUN | AC3: LÖI | AD3: TOI | AE3: KL | AF3: KL-% | AH3: LÖI | AI3: TOI | AJ3: L+T | AK3: KL | AM3: OTT | AN3: KUN | AO3: LÖI | AP3: TOI | AQ3: KL | AR3: KL-%
X4: 1987 | Y4: 4. | Z4: Tahko 2 | AA4: 1 | AB4: 0 | AC4: 0 | AD4: 0
X5: 1988 | Y5: 5. | Z5: Tahko 2 | AA5: 10 | AB5: 0 | AC5: 6 | AD5: 13
X6: 1989
B7: 1990 | C7: 8. | D7: HP | E7: 22 | F7: 0 | G7: 13 | H7: 16
B8: 1991 | C8: 5. | D8: HP | E8: 22 | F8: 0 | G8: 18 | H8: 14 | I8: 76
B9: 1992 | C9: 2. | D9: Manse PP | E9: 24 | F9: 0 | G9: 11 | H9: 17 | I9: 76
B10: 1993 | C10: 8. | D10: Manse PP | E10: 26 | F10: 0 | G10: 5 | H10: 35 | I10: 152 | O10: 9.
B11: 1994 | C11: 5. | D11: HP | E11: 14 | F11: 0 | G11: 0 | H11: 16 | I11: 64
B12: 1995 | C12: 2. | D12: HP | E12: 24 | F12: 3 | G12: 9 | H12: 39 | I12: 117 | M12: 7.
X14: 2002 | Y14: 9. | Z14: HP | AA14: 3 | AB14: 0 | AC14: 0 | AD14: 0 | AE14: 0 | AF14: 0.0 % | AG14: 2
B15: YHTEENSÄ | E15: =SUM(E4:E14) -> 132 | F15: =SUM(F4:F14) -> 3 | G15: =SUM(G4:G14) -> 56 | H15: =SUM(H4:H14) -> 137 | I15: =SUM(I4:I14) -> 485 | J15: 0.0 % | K15: =SUM(K4:K14) -> 0 | Q15: =SUM(Q4:Q14) -> 0 | R15: =SUM(R4:R14) -> 0 | S15: =SUM(S4:S14) -> 0 | T15: =SUM(T4:T14) -> 0 | U15: =SUM(U4:U14) -> 0 | V15: 0.0 % | W15: =SUM(W4:W14) -> 0 | X15: YHTEENSÄ | AA15: =SUM(AA4:AA14) -> 14 | AB15: =SUM(AB4:AB14) -> 0 | AC15: =SUM(AC4:AC14) -> 6 | AD15: =SUM(AD4:AD14) -> 13 | AE15: =SUM(AE4:AE14) -> 0 | AF15: =PRODUCT(AE15/AG15) -> 0.0 % | AG15: =SUM(AG4:AG14) -> 2 | AM15: =SUM(AM4:AM14) -> 0 | AN15: =SUM(AN4:AN14) -> 0 | AO15: =SUM(AO4:AO14) -> 0 | AP15: =SUM(AP4:AP14) -> 0 | AQ15: =SUM(AQ4:AQ14) -> 0 | AR15: 0.0 % | AS15: =SUM(AS4:AS14) -> 0
B17: KAIKKI OTTELUT | E17: OTT | F17: KUN | G17: LÖI | H17: TOI | I17: KL | J17: KL-% | L17: ka/L | M17: ka/T | N17: ka/l+t | O17: ka/kl | R17: Seurat | T17: Tahko = Hyvinkään Tahko (1915)
B18: SUPERPESIS | E18: 80 | F18: 0 | G18: 6 | H18: 47 | I18: 218 | J18: 55.3 % | K18: =PRODUCT(I18/J18) -> 394.2133816 | L18: =PRODUCT((F18+G18)/E18) -> 0.08 | M18: =PRODUCT(H18/E18) -> 0.59 | N18: =PRODUCT((F18+G18+H18)/E18) -> 0.66 | O18: =PRODUCT(I18/E18) -> 2.73 | T18: HP = Haminan Palloilijat (1928)
B19: YKKÖSPESIS | E19: =PRODUCT(E15+Q15) -> 132 | F19: =PRODUCT(F15+R15) -> 3 | G19: =PRODUCT(G15+S15) -> 56 | H19: =PRODUCT(H15+T15) -> 137 | I19: =PRODUCT(I15+U15) -> 485 | K19: =PRODUCT(K15+W15) -> 0 | L19: =PRODUCT((F19+G19)/E19) -> 0.45 | M19: =PRODUCT(H19/E19) -> 1.04 | N19: =PRODUCT((F19+G19+H19)/E19) -> 1.48 | O19: =PRODUCT(I19/110) -> 4.41 | T19: Manse PP = Mansen Pesäpallo (1978)
B20: SUOMENSARJA | E20: =PRODUCT(AA15+AM15) -> 14 | F20: =PRODUCT(AB15+AN15) -> 0 | G20: =PRODUCT(AC15+AO15) -> 6 | H20: =PRODUCT(AD15+AP15) -> 13 | I20: =PRODUCT(AE15+AQ15) -> 0 | J20: =PRODUCT(I20/K20) -> 0.0 % | K20: =PRODUCT(AG15+AS15) -> 2 | L20: =PRODUCT((F20+G20)/E20) -> 0.43 | M20: =PRODUCT(H20/E20) -> 0.93 | N20: =PRODUCT((F20+G20+H20)/E20) -> 1.36 | O20: =PRODUCT(I20/E20) -> 0.00
B21: YHTEENSÄ | E21: =SUM(E18:E20) -> 226 | F21: =SUM(F18:F20) -> 3 | G21: 68 | H21: 197 | I21: 703 | K21: =SUM(K18:K20) -> 396.2133816 | L21: =PRODUCT((F21+G21)/E21) -> 0.31 | M21: =PRODUCT(H21/E21) -> 0.87 | N21: =PRODUCT((F21+G21+H21)/E21) -> 1.19 | O21: =PRODUCT(I21/190) -> 3.70

Sheet Arvo-ottelut
B1: ITÄ - LÄNSI - KORTTI
B2: Jari Penttinen | C2: 16.1.1972
B3: C-POJAT | C3: Itä - Länsi, tulos | D3: Joukkue | E3: Seura | G3: V | H3: T | I3: H | J3: Up. | K3: Lj. | L3: Palk. | M3: O | N3: K | O3: L | P3: T | Q3: KL | R3: 1 | S3: 2 | T3: 3 | U3: k | V3: KL-% | W3: Pelinjohtaja | X3: Yleisöä
B4: 18.07. 1987 Hyvinkää | C4: 15-6 | D4: Länsi | E4: Tahko | I4: 1 | M4: 1 | P4: 1 | W4: Asko Eloranta | X4: 400
B6: B - POJAT | C6: Itä - Länsi, tulos | D6: Joukkue | E6: Seura | G6: V | H6: T | I6: H | J6: Up. | K6: Lj. | L6: Palk. | M6: O | N6: K | O6: L | P6: T | Q6: KL | R6: 1 | S6: 2 | T6: 3 | U6: k | V6: KL-% | W6: Pelinjohtaja | X6: Yleisöä
B7: 14.07. 1989 Lammi | C7: 6-7 | D7: Länsi | E7: Tahko | G7: 1 | L7: II p | M7: 1 | O7: 1 | W7: Gunnar Wallin | X7: 156
B9: A-POJAT | C9: Itä - Länsi, tulos | D9: Joukkue | E9: Seura | G9: V | H9: T | I9: H | J9: Up. | K9: Lj. | L9: Palk. | M9: O | N9: K | O9: L | P9: T | Q9: KL | R9: 1 | S9: 2 | T9: 3 | U9: k | V9: KL-% | W9: Pelinjohtaja | X9: Yleisöä
B10: 20.07. 1991 Oulu | C10: 4-5 | D10: Itä | E10: HP | I10: 1 | K10: jok | M10: 1 | O10: 1 | Q10: 2/4 | T10: 1/1 | U10: 1/3 | V10: 50.0 % | W10: Kari-Pekka Heinonen | X10: 2124

Sheet Pelinjohtaja
B1: PELINJOHTAJAKORTTI
B2: Jari Penttinen | E2: 16.1.1972
B3: MSU | C3: Runkosarja | J3: Ylempi loppusarja | N3: Alempi loppusarja | R3: Mitalit | U3: Huomautuksia
B4: Vuosi | C4: Seura | D4: Sija | E4: O | F4: V | G4: H | H4: Voitto-% | J4: O | K4: V | L4: H | M4: Voitto-% | N4: O | O4: V | P4: H | Q4: Voitto-% | R4: 1 | S4: 2 | T4: 3
B5: 1997 | C5: HP | D5: 3. | E5: NYP, 22 ottelua
B6: 2001 | C6: HP | D6: 14. | E6: 28 | F6: 5 | G6: 23 | H6: =PRODUCT(F6/E6) -> 17.9 % | N6: 7 | O6: 0 | P6: 7 | Q6: =PRODUCT(O6/N6) -> 0.0 % | U6: karsintasarja
B7: Yhteensä | E7: =SUM(E6:E6) -> 28 | F7: =SUM(F6:F6) -> 5 | G7: =SUM(G6:G6) -> 23 | H7: =PRODUCT(F7/E7) -> 17.9 % | J7: =SUM(J6:J6) -> 0 | K7: =SUM(K6:K6) -> 0 | L7: =SUM(L6:L6) -> 0 | M7: 0.0 % | N7: =SUM(N6:N6) -> 7 | O7: =SUM(O6:O6) -> 0 | P7: =SUM(P6:P6) -> 7 | Q7: =PRODUCT(O7/N7) -> 0.0 % | R7: =SUM(R6:R6) -> 0 | S7: =SUM(S6:S6) -> 0 | T7: =SUM(T6:T6) -> 0
B9: URA SUPERISSA | E9: O | F9: V | G9: H | H9: Voitto-% | J9: PLAY OFF | M9: SARJAT | N9: O | O9: V | P9: H | Q9: Voitto-%
B10: Runkosarja | E10: =PRODUCT(E7) -> 28 | F10: =PRODUCT(F7) -> 5 | G10: =PRODUCT(G7) -> 23 | H10: =PRODUCT(F10/E10) -> 17.9 % | J10: Puolivälierät
B11: Ylempi loppusarja | J11: Välierät
B12: Alempi loppusarja | E12: =SUM(N7) -> 7 | F12: =SUM(O7) -> 0 | G12: =SUM(P7) -> 7 | H12: =PRODUCT(F12/E12) -> 0.0 % | J12: Finaalit
B13: KAIKKI | E13: =SUM(E10:E12) -> 35 | F13: =SUM(F10:F12) -> 5 | G13: =SUM(G10:G12) -> 30 | H13: =PRODUCT(F13/E13) -> 14.3 % | J13: KAIKKI
B15: Seurat: | C15: HP = Haminan Palloilijat (1928)
